bitfinex-derivatives/quotes_ETHF0:USTF0_20250105
["timestamp","ask_amount","ask_price","bid_price","bid_amount"]
[1736053669251,1.10153,3640.8,3640.7,5.13932197]
[1736053670151,0.8268,3640.8,3640.7,5.13932197]
[1736053670348,0.8268,3640.8,3640.7,13.75769767]
[1736053671250,2.42462747,3640.9,3640.7,13.75769767]
[1736053671951,2.14989747,3640.9,3640.7,13.75769767]
[1736053672956,2.14989747,3640.9,3640.8,7.35935088]
[1736053673347,2.42461747,3640.9,3640.8,7.35935088]
[1736053674153,0.27472,3640.9,3640.8,24.28979945]
[1736053680457,3.22555227,3641.0,3640.8,24.28979945]
[1736053680754,3.50027227,3641.0,3640.8,24.28979945]
[1736053680956,3.50027227,3641.0,3640.9,1.3088]
[1736053681359,0.27472,3641.0,3640.9,1.3088]
[1736053681558,0.4146,3641.1,3640.9,2.29657109]
[1736053681753,4.30073637,3641.2,3641.1,0.27471]
[1736053681949,4.30073637,3641.2,3641.1,1.26248109]
[1736053682655,3.23594126,3641.2,3641.1,22.34448054]
[1736053684256,2.15571975,3641.6,3641.1,13.45139484]
[1736053684466,2.15571975,3641.6,3641.5,4.19557109]
[1736053684854,2.15571975,3641.6,3641.5,5.45197109]
[1736053685063,2.15571975,3641.6,3641.5,5.72665109]
[1736053685458,2.15571975,3641.7,3641.6,0.27467]
[1736053685659,2.15571975,3641.7,3641.6,1.26244109]
[1736053686959,2.15571975,3641.9,3641.7,0.27466]
[1736053687160,2.15571975,3641.9,3641.8,0.98777109]
[1736053688554,1.4616,3642.0,3641.8,0.98777109]
[1736053688961,1.4616,3642.0,3641.9,0.4497]
[1736053689158,0.4056,3642.0,3641.9,0.4497]
[1736053689865,0.4056,3642.0,3641.9,3.6575]
[1736053694269,0.68024,3642.0,3641.9,3.2078]
[1736053694964,0.4056,3642.0,3641.6,0.4406]
[1736053695166,0.27466,3641.7,3641.6,0.4406]
[1736053695769,0.27467,3641.6,3641.5,7.46376112]
[1736053695969,0.69327,3641.6,3641.5,7.46376112]
[1736053696271,0.4186,3641.6,3641.5,0.98777109]
[1736053707474,0.4186,3641.6,3641.5,1.26245109]
[1736053710871,0.4465,3641.9,3641.5,0.98777109]
[1736053711077,0.4476,3642.0,3641.8,0.27465]
[1736053711278,0.4476,3642.0,3641.9,0.4234]
[1736053711478,0.4476,3642.0,3641.9,0.69805]
[1736053711785,0.4476,3642.0,3641.9,0.4234]
[1736053715986,0.4476,3642.0,3641.9,0.69805]
[1736053716186,0.4476,3642.0,3641.9,0.4234]
[1736053719484,0.4476,3642.0,3641.9,1.68582109]
[1736053720491,2.15571975,3642.2,3642.1,0.27463]
[1736053720792,2.15571975,3642.2,3642.1,4.47020109]
[1736053722494,0.2746,3642.5,3642.1,15.09094758]
[1736053723587,0.2746,3642.5,3642.1,10.94619112]
[1736053723889,2.15571975,3642.6,3642.1,10.67156112]
[1736053724088,2.43031975,3642.6,3642.1,10.67156112]
[1736053724291,2.43031975,3642.6,3642.2,0.27462]
[1736053724793,2.43031975,3642.6,3642.3,0.4241]
[1736053724985,2.43031975,3642.6,3642.3,0.69872]
[1736053725183,2.43031975,3642.6,3642.3,0.4241]
[1736053726292,2.15571975,3642.5,3642.3,0.4241]
[1736053727098,2.15571975,3642.5,3642.3,1.41187109]
[1736053727394,2.43031975,3642.5,3642.3,1.41187109]
[1736053727598,0.2746,3642.5,3642.3,1.41187109]
[1736053727891,2.15571975,3642.6,3642.3,1.68649109]
[1736053728094,2.15571975,3642.6,3642.3,1.41187109]
[1736053728599,2.15571975,3642.5,3642.4,4.31818945]
[1736053730885,2.15571975,3642.5,3642.3,8.93786054]
[1736053731595,2.43031975,3642.5,3642.3,8.93786054]
[1736053733688,0.2746,3642.5,3642.3,8.93786054]
[1736053734492,2.15571975,3642.6,3642.3,8.93786054]
[1736053734789,2.43030975,3642.6,3642.3,8.93786054]
[1736053734992,0.2746,3642.5,3642.3,8.93786054]
[1736053735491,2.15571975,3642.6,3642.3,7.52598945]
[1736053735696,0.27461,3642.4,3642.3,7.52598945]
[1736053736202,1.13951,3642.4,3642.3,7.52598945]
[1736053737495,1.13951,3642.4,3642.3,3.2078]
[1736053737697,1.13951,3642.4,3642.2,4.31818945]
[1736053737897,0.4201,3642.3,3642.2,4.31818945]
[1736053741092,1.40787109,3642.3,3642.2,4.31818945]
[1736053741300,1.68249109,3642.3,3642.2,4.31818945]
[1736053742897,0.27463,3642.1,3642.0,3.2078]
[1736053743100,2.32040109,3642.1,3642.0,3.2078]
[1736053743801,2.04577109,3642.1,3641.7,4.31818945]
[1736053744018,1.26242109,3641.8,3641.7,4.31818945]
[1736053745296,0.98777109,3641.8,3641.6,4.31818945]
[1736053745490,1.56116,3641.7,3641.6,4.31818945]
[1736053748497,1.2865,3641.7,3641.5,3.2078]
[1736053748800,0.27467,3641.6,3641.5,3.2078]
[1736053749791,1.26244109,3641.6,3641.5,3.2078]
[1736053749996,0.98777109,3641.6,3641.3,4.31818945]
[1736053750202,1.26245109,3641.4,3641.3,4.31818945]
[1736053750400,2.31945109,3641.4,3641.3,4.31818945]
[1736053751406,2.04477109,3641.4,3640.9,0.98777109]
[1736053751608,0.27471,3641.0,3640.9,0.98777109]
[1736053754204,1.12061,3641.1,3640.9,0.98777109]
[1736053754605,0.8459,3641.1,3640.9,0.98777109]
[1736053754905,0.27471,3641.0,3640.9,0.98777109]
[1736053757311,0.27473,3640.9,3640.8,0.98777109]
[1736053757495,0.69973,3640.9,3640.8,0.98777109]
[1736053758725,0.69973,3640.9,3640.7,3.6216]
[1736053760705,0.27473,3640.8,3640.7,3.6216]
[1736053761012,1.26250109,3640.8,3640.7,3.6216]
[1736053761909,0.27473,3640.8,3640.7,3.6216]
[1736053762104,0.69972,3640.9,3640.7,3.6216]
[1736053763109,0.425,3640.9,3640.7,3.6216]
[1736053763613,0.69972,3640.9,3640.7,3.6216]
[1736053767113,0.69972,3640.9,3640.7,0.4138]
[1736053771421,0.425,3640.9,3640.7,0.4138]
[1736053772317,1.26248109,3641.0,3640.7,0.4138]
[1736053773517,1.057,3640.9,3640.7,0.4138]
[1736053776223,1.33173,3640.9,3640.7,0.4138]
[1736053776529,0.4223,3640.8,3640.7,0.4138]
[1736053779127,1.4783,3640.8,3640.7,0.4138]
[1736053779332,1.75303,3640.8,3640.7,0.4138]
[1736053779528,1.4783,3640.8,3640.7,0.4138]
[1736053786535,1.75303,3640.8,3640.7,0.4138]
[1736053788537,1.75303,3640.8,3640.6,0.443]
[1736053792041,3.9044016,3640.8,3640.6,0.443]
[1736053792736,0.27474,3640.7,3640.6,0.443]
[1736053792936,0.27474,3640.7,3640.5,7.97228945]
[1736053793240,0.27474,3640.7,3640.5,4.76448945]
[1736053793439,0.27474,3640.7,3640.6,4.31818945]
[1736053793440,2.4261116,3640.7,3640.6,4.31818945]
[1736053796041,0.27475,3640.5,3640.3,4.31818945]
[1736053796242,1.26252109,3640.5,3640.3,4.31818945]
[1736053796535,0.423,3640.4,3640.3,4.31818945]
[1736053797343,0.423,3640.4,3640.3,4.15247259]
[1736053798344,2.57708129,3640.4,3640.2,6.75076003]
[1736053798643,2.57708129,3640.4,3640.2,6.47599003]
[1736053799443,2.57708129,3640.4,3640.3,4.32265326]
[1736053800543,2.85184129,3640.4,3640.3,4.32265326]
[1736053803446,2.57708129,3640.4,3640.3,4.32265326]
[1736053805045,0.423,3640.4,3640.3,4.15137111]
[1736053806450,0.423,3640.4,3640.3,10.62736114]
[1736053807243,0.69776,3640.4,3640.3,10.62736114]
[1736053808244,0.423,3640.4,3640.3,10.62736114]
[1736053808649,0.69776,3640.4,3640.3,10.62736114]
[1736053809247,0.69776,3640.4,3640.3,4.15137111]
[1736053810548,0.27477,3640.3,3640.1,4.32256309]
[1736053810747,1.26254109,3640.2,3640.1,4.32256309]
[1736053811752,0.27478,3640.1,3640.0,4.32256309]
[1736053811951,1.32778,3640.1,3640.0,4.32256309]
[1736053812553,1.73508,3640.1,3640.0,4.32256309]
[1736053812753,2.15158,3640.1,3640.0,4.32256309]
[1736053812951,1.8768,3640.1,3639.9,4.75916309]
[1736053813251,1.67136109,3640.0,3639.9,4.32256309]
[1736053814851,0.27481,3639.7,3639.6,4.32256309]
[1736053816156,0.27481,3639.7,3639.5,4.32256309]
[1736053817052,0.4322,3639.6,3639.5,4.32256309]
[1736053817256,0.70702,3639.6,3639.5,4.32256309]
[1736053817757,0.70702,3639.6,3639.4,5.57736309]
[1736053817957,0.27483,3639.5,3639.4,5.57736309]
[1736053819463,0.27483,3639.5,3639.4,1.2548]
[1736053821961,1.41997109,3639.6,3639.4,1.2548]
[1736053822162,0.70703,3639.6,3639.4,1.2548]
[1736053822361,0.27483,3639.6,3639.4,1.2548]
[1736053825663,0.98777109,3639.8,3639.4,1.2548]
[1736053825865,0.27481,3639.7,3639.4,1.2548]
[1736053830972,0.27481,3639.7,3639.5,3.2078]
[1736053831268,0.27483,3639.4,3639.3,4.32256309]
[1736053831464,2.31660109,3639.4,3639.3,4.32256309]
[1736053831969,2.74020109,3639.4,3639.3,4.32256309]
[1736053832873,2.74020109,3639.4,3638.8,0.4156]
[1736053832874,0.27487,3638.9,3638.8,0.4156]
[1736053833062,1.26264109,3638.9,3638.8,0.4156]
[1736053833265,0.98777109,3638.9,3638.6,4.75146309]
[1736053833466,1.26266109,3638.7,3638.6,5.15836309]
[1736053833669,2.31666109,3638.7,3638.6,5.15836309]
[1736053833869,2.31666109,3638.7,3638.6,4.72946309]
[1736053834272,2.31666109,3638.7,3638.6,0.4069]
[1736053834878,2.04177109,3638.7,3638.6,0.4069]
[1736053835773,2.31666109,3638.7,3638.6,0.4069]
[1736053839966,8.02954218,3638.7,3638.1,4.32256309]
[1736053840277,0.98777109,3638.2,3638.1,4.32256309]
[1736053840572,1.055,3638.5,3638.1,4.32256309]
[1736053840870,1.055,3638.5,3638.2,1.84177109]
[1736053841069,1.055,3638.5,3638.2,2.11669109]
[1736053841279,1.055,3638.5,3638.3,0.4164]
[1736053841471,0.27491,3638.4,3638.3,0.4164]
[1736053841674,2.31767109,3638.5,3638.3,0.4164]
[1736053842175,1.055,3638.5,3638.3,0.4164]
[1736053842473,0.27488,3638.8,3638.4,0.98777109]
[1736053842671,2.15020011,3639.1,3638.7,0.27489]
[1736053842876,2.15020011,3639.1,3638.9,0.98777109]
[1736053842877,3.20520011,3639.1,3638.9,0.98777109]
[1736053843173,3.20520011,3639.1,3639.0,0.4217]
[1736053843565,3.20520011,3639.1,3639.0,0.69656]
[1736053843763,3.20520011,3639.1,3639.0,0.4217]
[1736053843764,1.055,3639.1,3639.0,0.4217]
[1736053847775,1.32986,3639.1,3639.0,0.4217]
[1736053849077,1.055,3639.1,3639.0,0.4217]
[1736053850372,0.69895,3639.2,3639.0,0.4217]
[1736053853379,0.27486,3639.1,3639.0,0.4217]
[1736053856179,0.4241,3639.2,3639.0,0.4217]
[1736053856381,0.27486,3639.1,3639.0,0.4217]
[1736053856783,0.4241,3639.2,3639.0,0.4217]
[1736053856984,0.69895,3639.2,3639.0,0.4217]
[1736053858478,0.4241,3639.2,3639.0,0.4217]
[1736053858782,0.69895,3639.2,3639.0,0.4217]
[1736053860580,0.4241,3639.2,3639.0,0.4217]
[1736053860786,0.27486,3639.1,3639.0,0.4217]
[1736053862381,0.69895,3639.2,3639.0,0.4217]
[1736053862583,0.4241,3639.2,3639.0,0.4217]
[1736053862993,0.27486,3639.1,3639.0,0.4217]
[1736053864584,1.41320945,3639.2,3639.0,0.4217]
[1736053864784,0.98910945,3639.2,3639.0,0.4217]
[1736053864983,1.26395945,3639.2,3639.0,0.4217]
[1736053867494,0.27486,3639.1,3639.0,0.4217]
[1736053868693,0.69996,3639.1,3639.0,3.2078]
[1736053868896,0.27486,3639.0,3638.9,4.32256309]
[1736053870983,0.848,3639.1,3638.9,4.32256309]
[1736053871190,1.12286,3639.1,3638.9,4.32256309]
[1736053871393,0.27486,3639.0,3638.9,4.32256309]
[1736053873891,0.27486,3639.0,3638.9,4.14837392]
[1736053876394,1.12286,3639.1,3638.9,4.14837392]
[1736053876798,0.4251,3639.1,3638.9,4.14837392]
[1736053876999,0.27485,3639.2,3638.9,4.14837392]
[1736053877299,3.58440956,3639.4,3638.9,5.13748337]
[1736053877486,4.64340956,3639.4,3638.9,5.13748337]
[1736053877893,4.64340956,3639.4,3639.1,4.32064065]
[1736053878090,2.59530011,3639.4,3639.1,5.3097501]
[1736053878293,2.15020011,3639.4,3639.2,0.8477]
[1736053878495,2.15020011,3639.4,3639.3,0.4261]
[1736053879597,0.27483,3639.5,3639.3,4.74674065]
[1736053881505,3.13930956,3639.6,3639.3,4.74674065]
[1736053881799,3.41412956,3639.6,3639.3,4.74674065]
[1736053885405,1.26392945,3639.6,3639.4,4.32064065]
[1736053885910,0.27483,3639.5,3639.4,4.32064065]
[1736053887809,1.26392945,3639.6,3639.4,4.32064065]
[1736053888114,2.85082011,3639.7,3639.4,4.32064065]
[1736053888306,2.85082011,3639.7,3639.4,10.62889793]
[1736053888307,2.15020011,3639.6,3639.4,10.62889793]
[1736053889605,2.42503011,3639.6,3639.5,10.62889793]
[1736053892712,0.27483,3639.6,3639.5,10.62889793]
[1736053893918,1.26393945,3639.6,3639.5,10.62889793]
[1736053895110,1.26393945,3639.6,3639.5,4.32324496]
[1736053895111,3.41413956,3639.6,3639.5,4.32324496]
[1736053897006,4.62826187,3639.6,3639.3,4.72924496]
[1736053897213,0.27483,3639.4,3639.3,4.72924496]
[1736053898414,0.27483,3639.4,3639.3,11.03466656]
[1736053903215,2.42805378,3639.5,3639.3,11.03466656]
[1736053904210,2.42805378,3639.5,3639.4,4.3237817]
[1736053905219,2.15322378,3639.5,3639.4,4.3237817]
[1736053907516,2.15322378,3639.5,3639.4,4.15296374]
[1736053917426,2.15322378,3639.5,3639.4,10.62895377]
[1736053917626,2.42805378,3639.5,3639.4,10.62895377]
[1736053918628,3.41716323,3639.5,3639.4,10.62895377]
[1736053918823,1.26393945,3639.5,3639.4,4.15296374]
[1736053920035,4.49070542,3639.5,3639.4,4.15296374]
[1736053921133,9.21587542,3639.5,3639.1,8.55144651]
[1736053921427,4.47175945,3639.2,3639.1,8.55144651]
[1736053921629,4.47175945,3639.2,3638.5,16.10289045]
[1736053921630,0.27486,3639.1,3639.0,8.55144651]
[1736053921823,1.26396945,3639.1,3639.0,8.55144651]
[1736053922427,0.98910945,3639.1,3638.8,10.80365425]
[1736053922627,1.26397945,3638.9,3638.8,10.80365425]
[1736053922827,1.26397945,3638.9,3638.6,0.4449]
[1736053922828,0.27489,3638.7,3638.6,0.4449]
[1736053923227,1.26399945,3638.7,3638.6,0.4449]
[1736053924429,4.90345975,3638.7,3638.6,0.4449]
[1736053925635,0.27489,3638.6,3638.5,3.2078]
[1736053925836,0.70249,3638.6,3638.5,3.2078]
[1736053929035,0.2749,3638.5,3638.4,0.4478]
[1736053929236,0.98910945,3638.5,3638.3,3.2078]
[1736053929539,0.27491,3638.4,3638.3,3.2078]
[1736053930148,0.27491,3638.4,3638.2,0.4444]
[1736053931037,1.26400945,3638.5,3638.2,0.4444]
[1736053931239,0.27492,3638.3,3638.2,0.4444]
[1736053931642,0.27491,3638.4,3638.2,0.4444]
[1736053932233,0.27492,3638.3,3638.2,0.4444]
[1736053932537,2.04810945,3638.3,3638.2,0.4444]
[1736053936040,2.04810945,3638.3,3637.9,3.2078]
[1736053936245,1.26404945,3638.0,3637.9,3.2078]
[1736053936645,0.98910945,3638.0,3637.9,3.2078]
[1736053937142,1.26404945,3638.0,3637.9,3.2078]
[1736053939443,0.98910945,3638.0,3637.9,3.2078]
[1736053939647,3.48116657,3638.3,3637.9,3.2078]
[1736053939951,0.98910945,3638.2,3637.9,3.48275]
[1736053940443,2.04910945,3638.4,3638.1,0.27493]
[1736053940647,2.04910945,3638.4,3638.2,0.4352]
[1736053940940,2.04910945,3638.4,3638.3,0.4448]
[1736053941137,2.32401945,3638.4,3638.3,0.4448]
[1736053944739,1.06,3638.4,3638.3,0.4448]
[1736053944942,1.06,3638.5,3638.3,3.6526]
[1736053945341,3.22707474,3638.9,3638.3,3.6526]
[1736053945342,0.2749,3638.6,3638.3,3.6526]
[1736053946147,0.27489,3638.6,3638.3,3.6526]
[1736053946645,4.19635602,3638.7,3638.3,3.6526]
[1736053946646,0.2749,3638.5,3638.3,3.6526]
[1736053946846,2.04910945,3638.7,3638.3,3.6526]
[1736053947044,0.2749,3638.6,3638.3,3.6526]
[1736053947344,0.98910945,3638.5,3638.3,3.6526]
[1736053947645,1.26400945,3638.5,3638.3,3.6526]
[1736053949146,0.98910945,3638.5,3638.3,3.6526]
[1736053950240,1.26400945,3638.5,3638.3,3.6526]
[1736053950443,0.98910945,3638.5,3638.3,3.6526]
[1736053950641,0.27491,3638.4,3638.3,3.6526]
[1736053954243,0.98910945,3638.5,3638.3,3.6526]
[1736053954744,1.26400945,3638.5,3638.3,3.6526]
[1736053955538,0.98910945,3638.5,3638.3,3.6526]
[1736053956145,1.26400945,3638.5,3638.3,3.6526]
[1736053956644,1.26400945,3638.5,3638.3,0.4448]
[1736053956849,1.26400945,3638.5,3638.3,3.6526]
[1736053963754,0.98910945,3638.5,3638.3,3.6526]
[1736053964349,0.2749,3638.6,3638.3,3.6526]
[1736053965349,0.2749,3638.6,3638.3,7.97710453]
[1736053967157,2.42214657,3638.6,3638.4,4.32450453]
[1736053970759,2.42214657,3638.6,3638.5,0.00198034]
[1736053974161,2.42214657,3638.6,3638.5,3.20978034]
[1736053977767,0.2749,3638.6,3638.5,3.20978034]
[1736053979567,2.42214657,3638.6,3638.5,3.20978034]
[1736053980559,2.42214657,3638.6,3638.5,0.00198034]
[1736053980757,3.68374657,3638.6,3638.5,0.00198034]
[1736053980967,1.5365,3638.6,3638.5,0.00198034]
[1736053984070,4.76357474,3638.6,3638.5,0.00198034]
[1736053985472,5.17607425,3638.6,3638.5,0.00198034]
[1736053986972,1.94899951,3638.6,3638.5,0.00198034]
[1736053990871,3.00699951,3638.6,3638.5,0.00198034]
[1736053991475,7.30801291,3638.6,3638.5,0.00198034]
[1736053992873,3.00699951,3638.6,3638.5,0.00198034]
[1736053994070,2.5945,3638.6,3638.5,0.00198034]
[1736053995572,7.30781843,3638.6,3638.5,0.00198034]
[1736054004481,7.46102788,3638.6,3638.5,0.00198034]
[1736054005686,2.74770945,3638.6,3638.5,0.00198034]
[1736054006280,1.26400945,3638.6,3638.5,0.00198034]
[1736054006585,2.32200945,3638.6,3638.5,0.00198034]
[1736054006982,7.03443124,3638.6,3638.5,0.00198034]
[1736054009683,2.73450887,3638.6,3638.5,0.00198034]
[1736054012988,3.16290887,3638.6,3638.5,0.00198034]
[1736054013995,12.81547059,3638.6,3638.5,0.00198034]
[1736054020095,13.03078681,3638.6,3638.5,0.00198034]
[1736054020693,12.38707059,3638.6,3638.5,0.00198034]
[1736054022598,7.01216763,3638.6,3638.5,0.00198034]
[1736054023197,5.95416763,3638.6,3638.5,0.00198034]
[1736054023398,7.01016763,3638.6,3638.5,0.00198034]
[1736054026509,1.67650887,3638.6,3638.5,0.00198034]
[1736054026713,2.73250887,3638.6,3638.5,0.00198034]
[1736054028103,2.32000945,3638.6,3638.5,0.00198034]
[1736054028708,1.26400945,3638.6,3638.5,0.00198034]
[1736054028912,6.63890241,3638.7,3638.5,0.00198034]
[1736054029108,7.69490241,3638.7,3638.5,0.00198034]
[1736054029314,0.41249942,3638.6,3638.5,0.00198034]
[1736054029616,5.37490296,3638.7,3638.5,0.27688034]
[1736054029814,5.37490296,3638.7,3638.6,0.8623]
[1736054030112,4.02450296,3638.7,3638.6,2.12629945]
[1736054030806,4.02450296,3638.7,3638.6,12.2786831]
[1736054030807,2.15078626,3638.7,3638.6,12.2786831]
[1736054031113,2.15078626,3638.7,3638.6,12.5535731]
[1736054032418,2.15078626,3638.9,3638.6,6.064287]
[1736054033016,2.42565626,3638.9,3638.6,5.789397]
[1736054033214,2.15078626,3638.9,3638.6,5.789397]
[1736054033416,2.15078626,3638.9,3638.7,0.4372]
[1736054034013,2.15078626,3638.9,3638.8,4.32360754]
[1736054034719,2.42565626,3638.9,3638.8,4.32360754]
[1736054035406,0.27487,3638.9,3638.7,4.76080754]
[1736054038518,0.98910945,3638.8,3638.7,4.76080754]
[1736054038922,1.26398945,3638.8,3638.7,4.76080754]
[1736054040624,0.98910945,3638.8,3638.7,0.4372]
[1736054040923,1.26398945,3638.8,3638.7,0.4372]
[1736054042920,1.26398945,3638.8,3638.6,4.73610754]
[1736054042921,0.27489,3638.7,3638.6,4.73610754]
[1736054043119,0.69699,3638.7,3638.6,4.73610754]
[1736054043318,1.12509,3638.7,3638.6,4.73610754]
[1736054043823,4.058,3638.7,3638.5,0.00198034]
[1736054044026,1.26399945,3638.6,3638.5,0.00198034]
[1736054045121,4.49017884,3638.6,3638.5,0.00198034]
[1736054045525,4.21528884,3638.6,3638.3,0.4346]
[1736054045720,1.26401945,3638.4,3638.3,0.4346]
[1736054045922,2.32001945,3638.4,3638.3,0.4346]
[1736054046728,4.46721254,3638.4,3638.3,0.4346]
[1736054047821,4.46528409,3638.4,3638.3,0.4346]
[1736054055231,2.318091,3638.4,3638.3,0.4346]
[1736054057225,1.262091,3638.4,3638.3,0.4346]
[1736054068936,3.20319309,3638.5,3638.3,0.4346]
[1736054069234,2.14719309,3638.5,3638.3,0.4346]
[1736054069427,2.14719309,3638.5,3638.3,1.42370945]
[1736054069634,2.14719309,3638.5,3638.4,0.27491]
[1736054070635,3.41116254,3639.1,3638.6,0.27489]
[1736054070841,3.41116254,3639.1,3638.7,0.8583]
[1736054071140,3.41116254,3639.1,3638.8,0.4349]
[1736054072934,3.13630254,3639.1,3638.8,0.4349]
[1736054073138,3.13630254,3639.1,3639.0,3.2078]
[1736054073343,0.98910945,3639.1,3639.0,3.2078]
[1736054074544,2.14719309,3639.2,3639.0,3.2078]
[1736054074845,3.13630254,3639.2,3639.0,3.2078]
[1736054075045,3.13630254,3639.2,3639.1,0.4069]
[1736054076045,0.98910945,3639.2,3639.1,0.4069]
[1736054083743,0.4356,3639.3,3639.1,0.4069]
[1736054083947,0.4356,3639.3,3639.1,0.68176]
[1736054084142,0.4356,3639.3,3639.2,0.4302]
[1736054084438,2.14719309,3639.4,3639.2,1.69415945]
[1736054084753,2.14719309,3639.4,3639.3,0.4308]
[1736054085047,0.4402,3639.5,3639.3,0.4308]
[1736054085257,2.57759309,3639.8,3639.4,4.19690945]
[1736054085555,2.57759309,3639.8,3639.6,1.26391945]
[1736054085739,2.57759309,3639.8,3639.7,0.4302]
[1736054086548,2.57759309,3639.8,3639.5,0.4276]
[1736054086847,2.57759309,3639.8,3639.5,0.70243]
[1736054087041,0.4304,3639.8,3639.5,0.70243]
[1736054088349,1.26392945,3639.7,3639.4,7.95331058]
[1736054088651,1.69652945,3639.7,3639.4,3.6331]
[1736054089745,1.42170945,3639.7,3639.4,3.6331]
[1736054089947,0.4326,3639.7,3639.4,3.6331]
[1736054090152,0.4326,3639.7,3639.4,3.90793]
[1736054091052,0.4326,3639.7,3639.4,3.6331]
[1736054091252,1.69651945,3639.7,3639.4,3.6331]
[1736054092250,0.27482,3639.6,3639.4,3.2078]
[1736054093349,1.83390945,3639.7,3639.4,3.2078]
[1736054093558,1.69651945,3639.7,3639.4,3.2078]
[1736054094247,0.4326,3639.7,3639.5,3.2078]
[1736054094448,1.26392945,3639.6,3639.5,3.2078]
[1736054095656,1.26392945,3639.6,3639.3,0.4308]
[1736054095955,0.98910945,3639.4,3639.3,0.4308]
[1736054096956,1.42870945,3639.4,3639.3,0.4308]
[1736054097147,1.70353945,3639.4,3639.3,0.4308]
[1736054097751,1.42870945,3639.4,3639.3,0.4308]
[1736054099654,0.27485,3639.2,3639.1,3.2078]
[1736054099957,0.98910945,3639.2,3639.1,3.2078]
[1736054100154,1.26395945,3639.2,3639.1,3.2078]
[1736054100948,2.31895945,3639.2,3639.1,3.2078]
[1736054102755,0.27489,3638.8,3638.7,3.2078]
[1736054102960,0.27489,3638.6,3638.5,4.32021058]
[1736054103558,1.26399945,3638.7,3638.5,4.32021058]
[1736054103961,0.27489,3638.6,3638.5,4.32021058]
[1736054104162,0.72379,3638.6,3638.5,4.32021058]
[1736054104351,0.72379,3638.6,3638.2,3.2078]
[1736054104551,0.98910945,3638.4,3638.2,3.2078]
[1736054105364,1.26401945,3638.4,3638.2,3.2078]
[1736054105759,0.98910945,3638.4,3638.2,3.2078]
[1736054106062,0.4224,3638.3,3638.2,3.2078]
[1736054114169,0.98910945,3638.4,3638.2,3.2078]
[1736054114566,0.98910945,3638.4,3638.3,0.4259]
[1736054115963,1.26401945,3638.4,3638.3,0.4259]
[1736054116468,0.98910945,3638.4,3638.3,0.4259]
[1736054118974,1.26401945,3638.4,3638.3,0.4259]
[1736054119169,0.98910945,3638.4,3638.3,0.4259]
[1736054119368,1.26401945,3638.4,3638.3,0.4259]
[1736054122076,0.98910945,3638.4,3638.3,0.4259]
[1736054125674,1.26401945,3638.4,3638.3,0.4259]
[1736054127779,0.98910945,3638.4,3638.3,0.4259]
[1736054129483,1.26401945,3638.4,3638.3,0.4259]
[1736054131387,1.26401945,3638.4,3638.1,0.4491]
[1736054131691,1.26401945,3638.4,3638.2,0.4158]
[1736054132387,2.32101945,3638.4,3638.2,0.4158]
[1736054132978,0.27492,3638.3,3638.2,0.4158]
[1736054145994,2.42211309,3638.3,3638.2,0.4158]
[1736054147192,3.50109939,3638.3,3638.2,0.4158]
[1736054148195,3.91362379,3638.3,3638.2,0.4158]
[1736054149587,0.6874444,3638.3,3638.2,4.73601058]
[1736054151098,0.27492,3638.3,3638.2,4.73601058]
[1736054151297,0.27492,3638.3,3638.2,4.32021058]
[1736054152293,4.98901692,3638.3,3638.2,4.32021058]
[1736054155899,0.6874444,3638.3,3638.2,4.32021058]
[1736054157004,0.27492,3638.2,3638.1,4.32021058]
[1736054157198,1.26402945,3638.2,3638.1,4.32021058]
[1736054158599,11.00514404,3638.2,3637.8,4.32021058]
[1736054158803,1.26405945,3637.9,3637.8,4.32021058]
[1736054159803,1.67658385,3637.9,3637.7,4.75341058]
[1736054160604,0.27496,3637.8,3637.7,4.75341058]
[1736054161003,3.50019924,3637.8,3637.7,4.75341058]
[1736054162306,3.91277988,3637.8,3637.7,0.4332]
[1736054162700,0.27496,3637.7,3637.6,7.52801058]
[1736054162901,2.75196945,3637.7,3637.6,7.52801058]
[1736054164007,2.75196945,3637.7,3637.6,3.2078]
[1736054164008,6.38978933,3637.7,3637.6,3.2078]
[1736054165608,5.97720869,3637.7,3637.6,3.2078]
[1736054166607,5.70224869,3637.7,3637.5,0.4485]
[1736054166912,0.27497,3637.6,3637.5,0.4485]
[1736054168212,2.42309133,3637.6,3637.5,0.4485]
[1736054170715,0.27499,3637.4,3637.3,4.75721058]
[1736054170910,1.26409945,3637.4,3637.3,4.75721058]
[1736054171208,1.26409945,3637.4,3637.3,0.437]
[1736054171509,0.27499,3637.3,3637.2,4.32021058]
[1736054171709,0.68499,3637.3,3637.2,4.32021058]
[1736054173015,0.41,3637.3,3637.1,0.4361]
[1736054173209,1.26410945,3637.2,3637.1,0.4361]
[1736054174406,0.27501,3637.1,3637.0,0.4285]
[1736054176211,2.42099144,3637.1,3637.0,0.4285]
[1736054177006,2.14598144,3637.1,3636.9,0.4154]
[1736054177208,2.76332945,3637.0,3636.9,0.4154]
[1736054177408,1.77422,3637.0,3636.9,0.4154]
[1736054177615,2.76332945,3637.0,3636.9,0.4154]
[1736054180014,0.27504,3636.7,3636.6,0.4278]
[1736054180222,1.26414945,3636.7,3636.6,0.8683]
[1736054180918,1.26414945,3636.7,3636.6,0.4405]
[1736054181107,1.26414945,3636.7,3636.1,7.52801058]
[1736054181108,0.27508,3636.2,3636.1,7.52801058]
[1736054181307,2.31918945,3636.2,3636.1,3.2078]
[1736054181715,2.31918945,3636.2,3636.1,3.6209]
[1736054183519,2.04410945,3636.2,3636.1,3.6209]
[1736054184322,2.31918945,3636.2,3636.1,3.6209]
[1736054186220,2.31918945,3636.2,3636.1,0.4131]
[1736054188321,2.04410945,3636.2,3635.8,0.4405]
[1736054188510,1.26420945,3635.9,3635.7,0.4076]
[1736054188717,1.26421945,3635.8,3635.7,0.4076]
[1736054191320,1.26421945,3635.8,3634.6,7.80321058]
[1736054191321,0.27516,3635.1,3634.6,7.80321058]
[1736054191629,0.98910945,3634.8,3634.7,1.58649]
[1736054191923,0.98910945,3634.8,3634.7,1.3113]
[1736054193822,1.26428945,3634.8,3634.7,1.3113]
[1736054194422,0.98910945,3634.8,3634.7,1.3113]
[1736054195025,1.26428945,3634.8,3634.7,1.3113]
[1736054196128,0.98910945,3634.8,3634.7,1.3113]
[1736054196625,1.26428945,3634.8,3634.7,1.3113]
[1736054197233,0.98910945,3634.8,3634.7,1.3113]
[1736054197526,0.9870805,3634.8,3634.7,1.3113]